bitfinex-derivatives/quotes_BNBF0:USTF0_20250130
["timestamp","ask_amount","ask_price","bid_price","bid_amount"]
[1738235122779,1.10404838,679.09,677.96,0.29500265]
[1738235124185,1.10404838,679.09,677.97,0.2578016]
[1738235124385,1.10404838,679.06,677.97,0.2578016]
[1738235124587,1.10404838,679.06,677.96,0.29500265]
[1738235127384,1.10404838,679.11,677.96,0.29500265]
[1738235131591,1.10404838,679.16,677.96,0.29500265]
[1738235133998,1.10404838,679.14,677.96,0.29500265]
[1738235135600,0.27080575,679.13,677.97,0.25782925]
[1738235136093,1.10404838,679.14,677.96,0.29500265]
[1738235137097,1.10404838,679.14,677.97,0.25781913]
[1738235137295,1.10404838,679.14,677.96,0.29500265]
[1738235137497,1.10404838,679.14,677.97,0.25782192]
[1738235139493,1.10404838,679.14,677.98,0.25780179]
[1738235139799,1.10404838,679.14,677.83,1.09920843]
[1738235140099,1.10404838,679.14,677.84,0.25781278]
[1738235141103,1.10404838,679.04,677.97,1.09920843]
[1738235141298,1.10404838,679.04,677.98,0.25781278]
[1738235141500,1.10404838,679.04,677.97,1.09920843]
[1738235142806,1.10404838,679.04,677.98,0.25785445]
[1738235144100,0.76494237,679.46,677.98,0.25785445]
[1738235144101,1.10404838,679.0,677.98,0.25785445]
[1738235144305,1.10404838,679.0,677.99,0.25785445]
[1738235144502,1.10404838,679.0,677.94,0.25785445]
[1738235144707,1.10404838,679.0,677.93,1.09920843]
[1738235146006,1.10404838,679.0,677.94,0.25789903]
[1738235147305,1.10404838,678.96,677.94,0.25789903]
[1738235147504,1.10404838,678.96,677.91,0.25789903]
[1738235147711,1.10404838,678.96,677.9,1.09920843]
[1738235148113,1.10404838,678.96,677.91,0.25789183]
[1738235150810,1.10404838,678.97,677.91,1.35710026]
[1738235151112,1.10404838,678.97,677.92,0.25789183]
[1738235153216,1.10404838,678.97,677.92,1.09920843]
[1738235153409,1.10404838,678.97,677.93,0.25790062]
[1738235154710,1.10404838,678.97,677.94,0.25790355]
[1738235154915,1.10404838,678.97,677.92,1.09920843]
[1738235155117,1.10404838,678.97,677.93,0.25790486]
[1738235155816,1.10404838,678.97,677.93,1.35711329]
[1738235156014,1.10404838,678.97,677.94,0.25790486]
[1738235156616,1.10404838,678.97,677.93,1.09920843]
[1738235156817,1.10404838,678.97,677.94,0.25794068]
[1738235159022,1.10404838,678.92,677.99,1.09920843]
[1738235159320,1.10404838,678.92,678.0,0.25794068]
[1738235162625,1.10404838,678.9,678.0,0.25794068]
[1738235162827,1.10404838,678.9,677.98,1.09920843]
[1738235166423,1.10404838,678.9,677.68,1.09920843]
[1738235166424,1.10404838,679.0,677.68,1.09920843]
[1738235166727,1.10404838,679.0,677.69,0.55320784]
[1738235166927,1.10404838,679.0,677.7,0.55320349]
[1738235167227,1.10404838,679.0,677.71,0.55319913]
[1738235167423,1.10404838,679.0,677.72,0.55319478]
[1738235167629,1.10404838,679.0,677.73,0.29510276]
[1738235167829,1.10404838,679.0,677.74,0.2580873]
[1738235168129,1.10404838,679.0,677.75,0.29509406]
[1738235168328,1.10404838,679.0,677.76,0.2580873]
[1738235168628,1.10404838,679.0,677.76,0.553177]
[1738235168928,0.27086612,678.99,677.77,0.2580873]
[1738235169332,0.27086612,679.02,677.77,0.2580873]
[1738235169624,0.27086612,679.01,677.77,0.2580873]
[1738235169827,0.27086612,679.02,677.77,0.2580873]
[1738235170024,0.27086612,679.01,677.77,0.2580873]
[1738235170227,0.27086612,679.02,677.77,0.2580873]
[1738235170427,1.10404838,679.03,677.77,0.2580873]
[1738235170428,0.27086612,679.01,677.77,0.2580873]
[1738235170731,0.27086612,679.0,677.77,0.2580873]
[1738235170928,0.27086612,679.02,677.77,0.2580873]
[1738235171128,0.27086612,679.01,677.77,0.2580873]
[1738235171329,0.27086612,679.02,677.77,0.2580873]
[1738235171523,0.27086612,679.01,677.77,0.2580873]
[1738235171726,0.27086612,679.02,677.77,0.2580873]
[1738235171928,0.27086612,679.01,677.77,0.2580873]
[1738235172128,0.27086612,679.02,677.77,0.2580873]
[1738235172326,0.27086612,679.01,677.77,0.2580873]
[1738235172528,0.27086612,679.02,677.77,0.2580873]
[1738235172736,0.56556533,679.43,677.77,0.2580873]
[1738235172737,1.10404838,678.89,677.77,0.2580873]
[1738235173031,0.27086612,678.88,677.77,0.2580873]
[1738235173432,1.10404838,678.89,677.77,0.2580873]
[1738235176029,1.10404838,678.89,677.78,1.09920843]
[1738235176232,1.10404838,678.89,677.79,0.2580873]
[1738235176628,1.10404838,678.89,677.8,0.25811753]
[1738235176827,1.10404838,678.89,677.79,0.25811753]
[1738235177034,1.10404838,678.89,677.8,0.25811753]
[1738235177333,1.10404838,678.89,677.81,0.25811753]
[1738235177535,1.10404838,678.89,677.82,0.25811753]
[1738235177728,0.27086926,678.88,677.83,0.25811753]
[1738235178036,0.27086926,678.88,677.84,0.25811753]
[1738235178233,0.27086926,678.88,677.78,1.09920843]
[1738235178234,0.27086926,678.88,677.79,0.25811753]
[1738235178937,1.37491764,678.88,677.79,0.25811753]
[1738235179135,1.37491764,678.88,677.78,0.25811753]
[1738235179136,1.10404838,678.88,677.78,0.25811753]
[1738235179331,1.10404838,678.88,677.79,0.25811753]
[1738235179528,1.10404838,678.88,677.78,0.25811753]
[1738235179727,0.27087682,678.87,677.79,0.25811753]
[1738235180233,0.27087682,678.87,677.8,0.25811753]
[1738235180431,0.27087682,678.87,677.78,0.25811753]
[1738235180628,0.27087682,678.87,677.79,0.25811753]
[1738235180833,0.27087682,678.87,677.78,0.25811753]
[1738235181027,0.27087682,678.87,677.79,0.25811753]
[1738235181230,1.10404838,678.84,677.78,0.25811753]
[1738235181432,1.10404838,678.84,677.76,1.39429813]
[1738235184739,1.10404838,679.22,677.76,0.2950897]
[1738235184931,0.29445973,679.21,677.76,0.2950897]
[1738235188037,0.27088729,679.2,677.76,0.2950897]
[1738235188441,1.37493567,679.2,677.76,0.2950897]
[1738235188739,0.56535235,679.19,677.76,0.2950897]
[1738235188941,0.27088394,679.18,677.76,0.2950897]
[1738235190040,0.29447708,679.17,677.76,0.2950897]
[1738235191941,0.27088486,679.16,677.76,0.2950897]
[1738235192543,0.29448575,679.15,677.76,0.2950897]
[1738235194039,0.27088376,679.14,677.76,0.2950897]
[1738235194246,0.29449442,679.13,677.76,0.2950897]
[1738235194446,0.27088376,679.12,677.76,0.2950897]
[1738235195441,0.29450309,679.11,677.76,0.2950897]
[1738235195642,1.37493214,679.1,677.76,0.2950897]
[1738235195846,0.27088376,679.09,677.76,0.2950897]
[1738235196144,0.56539553,679.09,677.76,0.2950897]
[1738235196347,0.27088376,679.08,677.76,0.2950897]
[1738235198352,1.10404838,678.94,677.76,0.2950897]
[1738235201350,1.10404838,678.92,677.76,0.2950897]
[1738235204353,1.10404838,678.91,677.76,0.2950897]
[1738235207154,1.10404838,678.93,677.76,0.2950897]
[1738235211052,1.10404838,678.87,677.76,0.2950897]
[1738235213552,1.10404838,678.83,677.76,0.2950897]
[1738235214755,1.10404838,678.83,677.77,0.25821205]
[1738235215948,1.10404838,678.83,677.76,0.2950897]
[1738235216152,1.10404838,678.83,677.77,0.25819861]
[1738235216756,1.10404838,678.76,677.8,1.09920843]
[1738235216953,1.10404838,678.76,677.81,0.25819861]
[1738235218759,1.10404838,678.76,677.8,1.09920843]
[1738235220462,1.10404838,678.71,677.85,1.09920843]
[1738235223865,1.10404838,678.9,677.76,0.2950897]
[1738235226668,0.29451177,679.09,677.76,0.2950897]
[1738235226669,1.10404838,678.93,677.76,0.2950897]
[1738235230171,1.10404838,678.85,677.76,0.2950897]
[1738235233569,1.10404838,678.84,677.76,0.2950897]
[1738235234468,1.10404838,678.84,677.77,0.25820262]
[1738235236977,1.10404838,678.84,677.78,0.25821215]
[1738235237177,1.10404838,678.84,677.77,0.25821215]
[1738235237376,1.10404838,678.84,677.78,0.25821215]
[1738235237678,0.29451177,679.09,677.76,0.2950897]
[1738235237679,1.10404838,678.75,677.85,1.09920843]
[1738235239578,1.10404838,678.75,677.86,0.25834226]
[1738235241580,1.10404838,678.75,677.87,0.25834226]
[1738235241880,1.10404838,678.75,677.88,0.25834851]
[1738235242179,1.10404838,678.75,677.84,1.09920843]
[1738235242379,1.10404838,678.75,677.85,0.25836886]
[1738235242681,1.10404838,678.75,677.84,1.09920843]
[1738235244081,1.10404838,678.7,677.86,1.09920843]
[1738235246785,0.29451177,679.09,677.76,0.2950897]
[1738235247986,0.27092628,679.08,677.76,0.2950897]
[1738235248186,0.29452044,679.07,677.76,0.2950897]
[1738235250887,1.10404838,678.96,677.76,0.2950897]
[1738235251578,1.39861654,678.96,677.76,0.2950897]
[1738235257188,0.29456816,678.96,677.76,0.2950897]
[1738235258085,0.27094632,678.95,677.76,0.2950897]
[1738235260188,1.10404838,678.82,677.76,0.2950897]
[1738235261188,0.27094816,678.81,677.76,0.2950897]
[1738235263293,0.27094816,678.8,677.76,0.2950897]
[1738235263492,0.27094816,678.82,677.76,0.2950897]
[1738235263790,0.27094816,678.81,677.76,0.2950897]
[1738235263984,0.27094816,678.82,677.76,0.2950897]
[1738235264189,1.10404838,678.83,677.76,0.2950897]
[1738235264190,0.27094816,678.81,677.76,0.2950897]
[1738235264390,0.27094816,678.82,677.76,0.2950897]
[1738235264591,0.27094816,678.81,677.76,0.2950897]
[1738235264892,0.27094816,678.8,677.76,0.2950897]
[1738235265087,1.10404838,678.83,677.76,0.2950897]
[1738235265285,0.27094912,678.82,677.76,0.2950897]
[1738235265491,1.10404838,678.75,677.76,0.2950897]
[1738235265689,0.27094912,678.74,677.76,0.2950897]
[1738235266889,0.29456816,678.96,677.76,0.2950897]
[1738235266890,0.27094941,678.73,677.76,0.2950897]
[1738235267089,0.27094941,678.95,677.76,0.2950897]
[1738235267291,0.27094941,678.94,677.76,0.2950897]
[1738235267492,0.27094941,678.95,677.76,0.2950897]
[1738235267688,0.27094941,678.94,677.76,0.2950897]
[1738235268090,0.27094941,678.93,677.76,0.2950897]
[1738235268395,0.27094783,678.92,677.76,0.2950897]
[1738235268596,0.27094783,678.91,677.76,0.2950897]
[1738235268894,0.27094783,678.9,677.76,0.2950897]
[1738235269094,0.27094783,678.95,677.76,0.2950897]
[1738235269296,1.10230553,678.73,677.76,0.2950897]
[1738235269497,0.27094783,678.72,677.76,0.2950897]
[1738235270898,1.10230553,678.73,677.76,0.2950897]
[1738235272700,1.10230553,678.67,677.76,0.2950897]
[1738235276309,1.10230553,678.78,677.76,0.2950897]
[1738235280307,1.10230553,678.73,677.76,0.2950897]
[1738235280807,0.270947,678.72,677.76,0.2950897]
[1738235281008,0.27094778,678.71,677.76,0.2950897]
[1738235281208,0.27094778,678.72,677.76,0.2950897]
[1738235281506,0.27094778,678.71,677.76,0.2950897]
[1738235281706,1.10230553,678.73,677.76,0.2950897]
[1738235281707,0.27094778,678.72,677.76,0.2950897]
[1738235283809,1.10230553,678.55,677.76,0.2950897]
[1738235291414,1.10230553,678.6,677.76,0.2950897]
[1738235294615,1.10230553,678.59,677.76,0.2950897]
[1738235297919,1.10230553,678.63,677.76,0.2950897]
[1738235301223,1.10230553,678.66,677.76,0.2950897]
[1738235307033,1.10230553,678.75,677.76,0.2950897]
[1738235309936,1.10230553,678.95,677.76,0.2950897]
[1738235315639,0.27091438,678.94,677.76,0.2950897]
[1738235316142,1.37321991,678.94,677.76,0.2950897]
[1738235316342,0.27091438,678.93,677.76,0.2950897]
[1738235318243,1.10230553,678.94,677.76,0.2950897]
[1738235318944,1.10230553,678.8,677.76,0.2950897]
[1738235321144,1.10230553,678.8,677.77,0.25844679]
[1738235321644,1.10230553,678.8,677.76,0.2950897]
[1738235321839,1.10230553,678.83,677.77,0.25843681]
[1738235323944,1.10230553,678.83,677.76,0.2950897]
[1738235324138,1.10230553,678.83,677.77,0.25848198]
[1738235325544,1.10230553,678.79,677.77,0.25848198]
[1738235326745,1.10230553,678.79,677.76,0.2950897]
[1738235327939,1.10230553,678.79,677.77,0.25848748]
[1738235328344,0.29456816,678.96,677.77,0.25848748]
[1738235328345,1.10230553,678.8,677.77,0.25848748]
[1738235328848,1.10230553,678.8,677.76,0.2950897]
[1738235329146,1.10230553,678.8,677.77,0.25849163]
[1738235329846,1.10230553,678.8,677.78,1.53885271]
[1738235330442,1.10230553,678.8,677.79,0.29507664]
[1738235330749,1.10230553,678.77,677.79,0.29507664]
[1738235334455,0.29456816,678.96,677.79,0.29507664]
[1738235339858,0.29456816,678.96,677.8,0.2583114]
[1738235341657,0.29456816,678.96,677.81,0.29506793]
[1738235341857,0.29456816,678.96,677.82,0.2583114]
[1738235342060,0.29456816,678.96,677.83,0.29505923]
[1738235343562,0.29456816,678.96,677.84,0.25831838]
[1738235344165,0.29456816,678.96,677.85,0.29505052]
[1738235344365,0.29456816,678.96,677.86,0.25831838]
[1738235346964,0.29456816,678.96,677.87,0.25826409]
[1738235347366,0.29456816,678.96,677.88,0.25826409]
[1738235347666,0.29456816,678.96,677.89,0.25826409]
[1738235347966,0.29456816,678.96,677.9,0.25826409]
[1738235348165,0.29456816,678.96,677.91,0.25826409]
[1738235348466,0.29456816,678.96,677.85,0.29505052]
[1738235348761,0.29456816,678.96,677.86,0.25826618]
[1738235349369,0.29456816,678.96,677.85,0.29505052]
[1738235365276,0.29456816,678.96,677.86,0.25836104]
[1738235367377,1.10230553,678.92,677.86,0.25836104]
[1738235368776,1.10230553,678.92,677.87,0.25836688]
[1738235368976,1.10230553,678.92,677.88,0.25836688]
[1738235369175,1.10230553,678.92,677.86,0.25836688]
[1738235369373,1.10230553,678.92,677.87,0.25836688]
[1738235369574,1.10230553,678.92,677.86,0.25836688]
[1738235369775,1.10230553,678.92,677.87,0.25836688]
[1738235370078,1.10230553,678.92,677.88,0.25836688]
[1738235370278,1.10230553,678.92,677.86,0.25836688]
[1738235370578,0.29456816,678.96,677.87,0.25836688]
[1738235370579,1.10230553,678.88,677.87,0.25836688]
[1738235370773,1.10230553,678.88,677.86,0.25836688]
[1738235370973,1.10230553,678.88,677.87,0.25836688]
[1738235371172,1.10230553,678.88,677.85,0.29505052]
[1738235372980,0.29456816,678.96,677.85,0.29505052]
[1738235382089,0.29456816,678.96,677.86,0.25832573]
[1738235383685,0.29456816,678.96,677.85,0.29505052]
[1738235383890,0.29456816,678.96,677.86,0.25833741]
[1738235385394,1.10230553,678.95,677.85,0.29505052]
[1738235385589,1.10230553,678.95,677.86,0.25833067]
[1738235386992,1.10230553,678.95,677.85,0.29505052]
[1738235387196,1.10230553,678.95,677.86,0.25834403]
[1738235388396,0.29456816,678.96,677.89,1.10043618]
[1738235388397,1.10230553,678.9,677.89,1.10043618]
[1738235388597,1.10230553,678.9,677.9,0.25834403]
[1738235391497,1.10230553,678.86,677.92,1.10043618]
[1738235391695,1.10230553,678.86,677.93,0.25834403]
[1738235394694,1.10230553,678.84,677.94,1.10043618]
[1738235394899,1.10230553,678.84,677.95,0.25834403]
[1738235397201,1.10230553,678.84,677.94,1.10043618]
[1738235397400,1.10230553,678.84,677.95,0.25834104]
[1738235397899,1.10230553,678.84,677.94,1.10043618]
[1738235398295,1.10230553,678.84,677.95,0.25834204]
[1738235398700,1.10230553,678.84,677.94,1.10043618]
[1738235399302,1.10230553,678.84,677.95,0.25834414]
[1738235400202,1.10230553,678.84,677.94,1.10043618]
[1738235402005,0.29456816,678.96,677.94,1.10043618]
[1738235402006,1.10230553,678.85,677.94,1.10043618]
[1738235405609,1.10230553,678.83,677.9,1.10043618]
[1738235408509,0.29456816,678.96,677.85,0.29505052]
[1738235408808,0.29456816,678.96,677.86,0.25833093]
[1738235409803,0.29456816,678.96,677.85,0.29505052]
[1738235410008,0.29456816,678.96,677.86,0.25834465]
[1738235410810,0.27084238,678.95,677.86,0.25834465]
[1738235411011,0.29456816,678.96,677.86,0.25834465]
[1738235411208,0.29456816,678.96,677.85,0.29505052]
[1738235411511,1.10230553,678.93,677.86,0.25834182]
[1738235413711,1.10230553,678.93,677.85,0.29505052]
[1738235413913,1.10230553,678.84,677.95,1.10043618]
[1738235417114,1.10230553,678.84,677.85,0.29505052]
[1738235417314,1.39687369,678.96,677.85,0.29505052]
[1738235425224,0.29456816,678.96,677.85,0.29505052]
[1738235428521,1.10230553,678.93,677.85,0.29505052]
[1738235432123,1.39687369,678.96,677.85,0.29505052]
[1738235432326,1.39687369,678.96,677.86,0.25835616]
[1738235433027,1.39687369,678.96,677.87,0.25836041]
[1738235433227,1.39687369,678.96,677.86,0.25836041]
[1738235433427,1.39687369,678.96,677.87,0.25836041]
[1738235433828,1.39687369,678.96,677.88,0.25836041]
[1738235434023,1.39687369,678.96,677.85,0.29505052]
[1738235434024,1.39687369,678.96,677.86,0.25836041]
[1738235434226,1.39687369,678.96,677.87,0.25836041]
[1738235434425,1.39687369,678.96,677.86,0.25836041]
[1738235434730,1.39687369,678.96,677.87,0.25834317]
[1738235434930,1.39687369,678.96,677.88,0.25834317]
[1738235435125,1.39687369,678.96,677.86,0.25834317]
[1738235435330,1.39687369,678.96,677.87,0.25834317]
[1738235435629,1.39687369,678.96,677.88,0.25834317]
[1738235435830,1.39687369,678.96,677.86,0.25834317]
[1738235436031,1.39687369,678.96,677.87,0.25834317]
[1738235436229,1.39687369,678.96,677.86,0.25834317]
[1738235436431,1.10230553,678.91,677.88,1.10043618]
[1738235436631,1.10230553,678.91,677.89,0.25834317]
[1738235440237,1.10230553,678.88,677.89,0.25834317]
[1738235443442,1.10230553,678.83,677.97,1.10043618]
[1738235443636,1.10230553,678.83,677.98,0.25834317]
[1738235443941,1.10230553,678.83,677.97,1.10043618]
[1738235444743,1.10230553,678.83,677.98,0.25831373]
[1738235446045,1.10230553,678.83,677.99,0.25831185]
[1738235446246,1.10230553,678.83,677.97,1.10043618]
[1738235446446,1.10230553,678.83,677.98,0.25830969]
[1738235447744,1.10230553,678.83,677.99,0.25830362]
[1738235447946,1.10230553,678.83,677.97,1.10043618]
[1738235448250,1.10230553,678.83,677.98,0.25830087]
[1738235449451,1.10230553,678.83,677.97,1.10043618]
[1738235450050,1.10230553,678.82,677.99,1.10043618]
[1738235452751,1.10230553,678.85,677.93,1.10043618]
[1738235455045,1.10230553,678.88,677.91,1.10043618]
[1738235458051,0.29456816,678.96,677.91,1.10043618]
[1738235458052,1.10230553,678.85,677.91,1.10043618]
[1738235458251,1.10230553,678.85,677.92,1.35874643]
[1738235458550,1.10230553,678.85,677.92,1.10043618]
[1738235459453,1.10230553,678.85,677.93,0.25829954]
[1738235461348,1.10230553,678.85,677.97,1.10043618]
[1738235461654,1.10230553,678.84,677.97,1.10043618]
[1738235463958,0.29456816,678.96,677.95,1.10043618]
[1738235463959,1.10230553,678.85,677.95,1.10043618]
[1738235467158,1.10230553,678.85,677.85,0.29505052]
[1738235467159,0.29456816,678.96,677.85,0.29505052]
[1738235474556,0.27090542,678.95,677.85,0.29505052]
[1738235476359,1.10230553,678.86,677.85,0.29505052]
[1738235479765,1.10230553,678.89,677.85,0.29505052]
[1738235480361,0.27090667,678.88,677.85,0.29505052]
[1738235481662,1.10230553,678.89,677.85,0.29505052]
[1738235481865,0.27090601,678.88,677.85,0.29505052]
[1738235483366,0.27090957,678.87,677.85,0.29505052]
[1738235483562,0.27090957,678.88,677.85,0.29505052]
[1738235483763,1.10230553,678.82,677.85,0.29505052]
[1738235483964,0.27090957,678.81,677.85,0.29505052]
[1738235485070,0.27091029,678.8,677.85,0.29505052]
[1738235485471,1.10230553,678.82,677.85,0.29505052]
[1738235485671,0.27091148,678.81,677.85,0.29505052]
[1738235486069,1.10230553,678.82,677.85,0.29505052]
[1738235486372,0.27090939,678.81,677.85,0.29505052]
[1738235486563,1.10230553,678.82,677.85,0.29505052]
[1738235486765,0.2709095,678.81,677.85,0.29505052]
[1738235487174,1.37321503,678.81,677.85,0.29505052]
[1738235487370,0.2709095,678.8,677.85,0.29505052]
[1738235490977,1.10230553,678.78,677.85,0.29505052]
[1738235491176,0.2709095,678.77,677.85,0.29505052]
[1738235491776,1.10230553,678.78,677.85,0.29505052]
[1738235493874,0.29456816,678.96,677.85,0.29505052]
[1738235493875,1.10230553,678.8,677.85,0.29505052]
[1738235495481,0.27090712,678.79,677.85,0.29505052]
[1738235497780,1.10230553,678.75,677.85,0.29505052]
[1738235500682,1.10230553,678.7,677.85,0.29505052]
[1738235504185,1.10230553,678.76,677.85,0.29505052]
[1738235506684,1.10230553,678.75,677.85,0.29505052]
[1738235509287,1.37322953,678.74,677.85,0.29505052]
[1738235509687,1.10230553,678.74,677.85,0.29505052]
[1738235509885,0.27092596,678.73,677.85,0.29505052]
[1738235510685,1.10230553,678.74,677.85,0.29505052]
[1738235511690,1.10230553,678.61,677.85,0.29505052]
[1738235515794,1.10230553,678.72,677.85,0.29505052]
[1738235518091,1.10230553,678.74,677.85,0.29505052]
[1738235525104,1.10230553,678.71,677.85,0.29505052]
[1738235527705,1.10230553,678.69,677.85,0.29505052]
[1738235531106,1.10230553,678.68,677.85,0.29505052]
[1738235534011,1.10230553,678.65,677.85,0.29505052]
[1738235536913,1.10230553,678.62,677.85,0.29505052]
[1738235540718,1.10230553,678.64,677.85,0.29505052]
[1738235543516,1.10230553,678.69,677.85,0.29505052]
[1738235546021,1.10230553,678.78,677.85,0.29505052]
[1738235552627,1.10230553,678.77,677.85,0.29505052]
[1738235558933,0.29456816,678.96,677.85,0.29505052]
[1738235567635,0.29456816,678.96,677.86,0.25832992]
[1738235568630,0.29456816,678.96,677.85,0.29505052]
[1738235568936,0.29456816,678.96,677.86,0.25834973]
[1738235569736,0.29456816,678.96,677.85,0.29505052]
[1738235581948,0.27088911,678.95,677.85,0.29505052]
[1738235582944,0.27088911,678.95,677.86,0.25847795]
[1738235584351,0.27088911,678.95,677.85,0.29505052]
[1738235586549,0.29456816,678.96,677.85,0.29505052]
[1738235586550,0.27091413,678.94,677.85,0.29505052]
[1738235586750,0.27091413,678.93,677.85,0.29505052]
[1738235586945,0.27091413,678.95,677.85,0.29505052]
[1738235587151,0.27091413,678.94,677.85,0.29505052]
[1738235587450,0.27091413,678.93,677.85,0.29505052]
[1738235587650,0.27091413,678.95,677.85,0.29505052]
[1738235587854,1.10230553,678.88,677.85,0.29505052]
[1738235588045,0.27090988,678.87,677.85,0.29505052]
[1738235589543,1.10230553,678.88,677.85,0.29505052]
[1738235589749,0.27090883,678.87,677.85,0.29505052]
[1738235590048,1.10230553,678.86,677.85,0.29505052]
[1738235590245,0.27090883,678.85,677.85,0.29505052]
[1738235592654,1.10230553,678.86,677.85,0.29505052]
[1738235593259,1.10230553,678.84,677.85,0.29505052]
[1738235597368,1.10230553,678.89,677.85,0.29505052]
[1738235597665,0.27090576,678.88,677.85,0.29505052]
[1738235597966,1.10230553,678.89,677.85,0.29505052]
[1738235599668,1.10230553,678.91,677.85,0.29505052]
[1738235601067,1.10230553,678.89,677.85,0.29505052]
[1738235603870,1.10230553,678.87,677.85,0.29505052]
[1738235607774,1.10230553,678.82,677.85,0.29505052]
[1738235610272,0.27090676,678.81,677.85,0.29505052]
[1738235610865,1.10230553,678.75,677.85,0.29505052]
[1738235614678,1.10230553,678.65,677.85,0.29505052]
[1738235619584,1.10230553,678.66,677.85,0.29505052]
[1738235621980,1.10230553,678.69,677.85,0.29505052]
[1738235625387,1.10230553,678.75,677.85,0.29505052]
[1738235628488,1.10230553,678.73,677.85,0.29505052]
[1738235631289,0.27093947,678.72,677.85,0.29505052]
[1738235632683,1.10230553,678.7,677.85,0.29505052]
[1738235632886,0.27093947,678.69,677.85,0.29505052]
[1738235633185,1.10230553,678.7,677.85,0.29505052]
[1738235634890,1.10230553,678.66,677.85,0.29505052]
[1738235635489,1.10230553,678.66,677.67,1.10043618]
[1738235638393,1.10230553,678.89,676.96,1.10043618]
[1738235638590,0.29460287,678.88,676.98,0.2954297]
[1738235638793,0.29460287,678.88,676.99,0.25911541]
[1738235638987,0.29460287,678.88,677.01,0.29541661]
[1738235639187,0.29460287,678.88,677.02,0.25911541]
[1738235639492,0.29460287,678.88,677.04,0.29540352]
[1738235639693,0.29460287,678.88,677.05,0.25915489]
[1738235640193,0.29460287,678.88,677.07,0.29539043]
[1738235640393,0.29460287,678.88,677.08,0.25915489]
[1738235640587,0.29460287,678.88,677.1,0.29537734]
[1738235640789,0.29460287,678.88,677.11,0.25915489]
[1738235640992,0.29460287,678.88,677.13,0.29536425]
[1738235641187,0.29460287,678.88,677.14,0.25915489]
[1738235641387,0.29460287,678.88,677.16,0.29535117]
[1738235641593,0.29460287,678.88,677.17,0.25915489]
[1738235641794,0.29460287,678.88,677.19,0.29533808]
[1738235641990,0.29460287,678.88,677.2,0.25915489]
[1738235642195,0.29460287,678.88,677.22,0.295325]
[1738235642598,0.29460287,678.88,677.23,0.25917524]
[1738235642794,0.29460287,678.88,677.25,0.29531192]
[1738235643194,0.29460287,678.88,677.26,0.25915601]
[1738235643397,0.29460287,678.88,677.27,0.2953032]
[1738235645297,0.29460287,678.88,677.28,0.25918047]
[1738235645699,0.27096574,678.87,677.28,0.25918047]
[1738235645999,0.29460287,678.88,677.28,0.25918047]
[1738235646201,0.29460287,678.88,677.3,0.29529012]
[1738235646400,0.29460287,678.88,677.31,0.25918047]
[1738235646901,0.29460287,678.88,677.33,0.29527704]
[1738235647099,0.27095942,678.87,677.34,0.25918047]
[1738235647297,0.29460287,678.88,677.36,0.29526396]
[1738235647497,0.29460287,678.88,677.37,0.2591074]
[1738235647694,0.27096027,678.87,677.38,0.29525524]
[1738235647895,0.27096027,678.87,677.39,0.2591074]
[1738235648102,1.10230553,678.82,677.4,0.29524653]
[1738235648299,0.27096027,678.81,677.41,0.2591074]
[1738235648603,0.27096027,678.81,677.42,0.29523781]
[1738235648801,0.27096027,678.81,677.43,0.2591074]
[1738235648995,0.27096027,678.81,677.44,0.29522909]
[1738235649199,0.27096027,678.81,677.45,0.2591074]
[1738235649494,0.27096027,678.81,677.46,0.29522038]
[1738235649698,0.27096027,678.81,677.47,0.2591074]
[1738235650399,0.27096027,678.81,677.48,0.29521166]
[1738235650600,0.27096027,678.81,677.49,0.2591074]
[1738235650799,0.27096311,678.8,677.5,0.5543147]
[1738235651001,1.10230553,678.71,677.51,0.55431034]
[1738235651202,1.10230553,678.71,677.52,0.55430598]
[1738235651504,1.10230553,678.71,677.53,0.55430163]
[1738235651704,1.10230553,678.71,677.54,0.55429727]
[1738235651901,1.10230553,678.71,677.55,0.55429291]
[1738235652107,1.10230553,678.71,677.56,0.55428856]
[1738235652300,1.10230553,678.71,677.57,0.25911175]
[1738235652499,1.10230553,678.71,677.56,0.29517681]
[1738235654504,1.10230553,678.72,677.56,0.29517681]
[1738235655401,1.10230553,678.72,677.57,0.25912819]
[1738235655603,0.29460287,678.88,677.57,0.25912819]
[1738235655904,0.27096526,678.87,677.57,0.25912819]
[1738235658111,1.10395828,678.7,677.57,0.25912819]
[1738235661417,1.10395828,678.68,677.57,0.25912819]
[1738235664418,0.29460287,678.88,677.56,0.29517681]
[1738235664419,1.10395828,678.66,677.58,0.25909571]
[1738235664616,1.10395828,678.66,677.57,0.25909571]
[1738235664810,1.10395828,678.66,677.58,0.25909571]
[1738235665012,1.10395828,678.66,677.57,0.25909571]
[1738235665317,1.10395828,678.66,677.58,0.25909571]
[1738235665616,1.10395828,678.66,677.59,0.25909571]
[1738235665817,1.10395828,678.66,677.6,0.25909571]
[1738235666119,1.10395828,678.66,677.61,0.25908176]
[1738235666314,1.10395828,678.66,677.57,0.25908176]
[1738235666512,1.10395828,678.66,677.58,0.25908176]
[1738235666816,1.10395828,678.66,677.59,0.25908176]
[1738235667012,1.10395828,678.66,677.57,0.25908176]
[1738235667219,0.27096449,678.65,677.58,0.25908176]
[1738235667417,0.27096449,678.65,677.57,0.25908176]
[1738235667713,0.27096449,678.65,677.58,0.25908176]
[1738235667919,0.27096449,678.65,677.59,0.25908176]